[Event "Titled Tuesday Blitz July 26 Late 2022"]
[White "Vidonyak, Roman"]
[Black "Kilpatrick, Callum"]
[WhiteFideId "14100622"]
[BlackFideId "414425"]
[WhiteElo "2358"]
[BlackElo "2351"]
[Result "1/2-1/2"]
[Round "02"]
[TimeControl "180+1"]
[Date "2022.07.27"]
[WhiteClock "0:00:29"]
[BlackClock "0:00:22"]

1. d4 {[%clk 0:03:00]}  Nf6 {[%clk 0:02:59]} 2. c4 {[%clk 0:02:59]}  e6 {[%clk 0:03:00]} 3. Nc3 {[%clk 0:02:58]}  Bb4 {[%clk 0:03:00]} 4. f3 {[%clk 0:02:58]}  d5 {[%clk 0:03:00]} 5. a3 {[%clk 0:02:58]}  Bxc3+ {[%clk 0:02:59]} 6. bxc3 {[%clk 0:02:59]}  O-O {[%clk 0:02:59]} 7. cxd5 {[%clk 0:02:58]}  Nxd5 {[%clk 0:02:57]} 8. e4 {[%clk 0:02:48]}  Nxc3 {[%clk 0:02:23]} 9. Qd3 {[%clk 0:02:25]}  Na4 {[%clk 0:02:23]} 10. Be3 {[%clk 0:02:19]}  c5 {[%clk 0:01:59]} 11. d5 {[%clk 0:02:02]}  exd5 {[%clk 0:01:57]} 12. exd5 {[%clk 0:02:03]}  Qa5+ {[%clk 0:01:50]} 13. Kf2 {[%clk 0:01:57]}  Nd7 {[%clk 0:01:40]} 14. Nh3 {[%clk 0:01:41]}  Ne5 {[%clk 0:01:39]} 15. Qc2 {[%clk 0:01:37]}  Bxh3 {[%clk 0:01:34]} 16. gxh3 {[%clk 0:01:36]}  Qc3 {[%clk 0:01:34]} 17. Qxc3 {[%clk 0:01:34]}  Nxc3 {[%clk 0:01:35]} 18. Rc1 {[%clk 0:01:33]}  Nxd5 {[%clk 0:01:26]} 19. Bxc5 {[%clk 0:01:27]}  Rfc8 {[%clk 0:01:20]} 20. Be3 {[%clk 0:01:26]}  Nxe3 {[%clk 0:01:18]} 21. Rxc8+ {[%clk 0:01:26]}  Rxc8 {[%clk 0:01:19]} 22. Kxe3 {[%clk 0:01:27]}  Rc1 {[%clk 0:01:18]} 23. Bg2 {[%clk 0:01:19]}  Rxh1 {[%clk 0:01:18]} 24. Bxh1 {[%clk 0:01:20]}  Nc4+ {[%clk 0:01:15]} 25. Kd4 {[%clk 0:01:17]}  Nxa3 {[%clk 0:01:15]} 26. f4 {[%clk 0:01:15]}  b5 {[%clk 0:01:06]} 27. Kc5 {[%clk 0:01:11]}  a5 {[%clk 0:01:04]} 28. Bd5 {[%clk 0:01:07]}  b4 {[%clk 0:00:55]} 29. Bb3 {[%clk 0:01:02]}  Kf8 {[%clk 0:00:50]} 30. Kb6 {[%clk 0:01:00]}  Nb1 {[%clk 0:00:47]} 31. Kxa5 {[%clk 0:00:59]}  Nd2 {[%clk 0:00:47]} 32. Kxb4 {[%clk 0:00:54]}  Nxb3 {[%clk 0:00:14]} 33. Kxb3 {[%clk 0:00:54]}  Ke8 {[%clk 0:00:15]} 34. Kc4 {[%clk 0:00:51]}  Ke7 {[%clk 0:00:15]} 35. Kd5 {[%clk 0:00:46]}  Kf6 {[%clk 0:00:15]} 36. Ke4 {[%clk 0:00:46]}  Ke6 {[%clk 0:00:15]} 37. f5+ {[%clk 0:00:39]}  Kf6 {[%clk 0:00:14]} 38. Kf4 {[%clk 0:00:40]}  g6 {[%clk 0:00:13]} 39. fxg6 {[%clk 0:00:39]}  hxg6 {[%clk 0:00:14]} 40. h4 {[%clk 0:00:39]}  Kg7 {[%clk 0:00:12]} 41. Kg4 {[%clk 0:00:37]}  Kh6 {[%clk 0:00:12]} 42. Kf4 {[%clk 0:00:27]}  Kh5 {[%clk 0:00:12]} 43. Kg3 {[%clk 0:00:26]}  f6 {[%clk 0:00:07]} 44. Kh3 {[%clk 0:00:23]}  f5 {[%clk 0:00:08]} 45. Kg3 {[%clk 0:00:23]}  Kh6 {[%clk 0:00:08]} 46. Kf4 {[%clk 0:00:22]}  Kh5 {[%clk 0:00:08]} 47. Kg3 {[%clk 0:00:22]}  Kh6 {[%clk 0:00:09]} 48. Kf4 {[%clk 0:00:23]}  Kg7 {[%clk 0:00:09]} 49. Kg5 {[%clk 0:00:23]}  Kh7 {[%clk 0:00:09]} 50. h5 {[%clk 0:00:22]}  gxh5 {[%clk 0:00:09]} 51. Kxf5 {[%clk 0:00:20]}  Kh6 {[%clk 0:00:09]} 52. Kf6 {[%clk 0:00:20]}  h4 {[%clk 0:00:10]} 53. Kf5 {[%clk 0:00:19]}  Kh5 {[%clk 0:00:11]} 54. Kf4 {[%clk 0:00:19]}  h3 {[%clk 0:00:11]} 55. Kg3 {[%clk 0:00:19]}  Kg5 {[%clk 0:00:11]} 56. Kxh3 {[%clk 0:00:20]}  Kh5 {[%clk 0:00:12]} 57. Kg3 {[%clk 0:00:20]}  Kg5 {[%clk 0:00:13]} 58. h4+ {[%clk 0:00:20]}  Kh5 {[%clk 0:00:14]} 59. Kh3 {[%clk 0:00:20]}  Kh6 {[%clk 0:00:15]} 60. Kg3 {[%clk 0:00:21]}  Kg6 {[%clk 0:00:15]} 61. Kh3 {[%clk 0:00:22]}  Kh6 {[%clk 0:00:16]} 62. Kg4 {[%clk 0:00:22]}  Kg6 {[%clk 0:00:17]} 63. h5+ {[%clk 0:00:23]}  Kh6 {[%clk 0:00:18]} 64. Kh4 {[%clk 0:00:24]}  Kh7 {[%clk 0:00:19]} 65. Kg4 {[%clk 0:00:24]}  Kg7 {[%clk 0:00:19]} 66. Kg5 {[%clk 0:00:25]}  Kh7 {[%clk 0:00:20]} 67. h6 {[%clk 0:00:26]}  Kh8 {[%clk 0:00:21]} 68. Kh5 {[%clk 0:00:27]}  Kg8 {[%clk 0:00:21]} 69. Kg6 {[%clk 0:00:28]}  Kh8 {[%clk 0:00:22]} 70. h7 {[%clk 0:00:29]} 1/2-1/2


[Site "https://www.chess.com"]

[Event "Titled Tuesday Blitz July 26 Late 2022"]
[White "Vovk, Orest"]
[Black "Bordi, Kevin"]
[WhiteFideId "14113490"]
[BlackFideId "621862"]
[WhiteElo "2203"]
[BlackElo "2839"]
[Result "1/2-1/2"]
[Round "02"]
[TimeControl "180+1"]
[Date "2022.07.26"]
[WhiteClock "0:00:09"]
[BlackClock "0:00:42"]

1. h3 {[%clk 0:03:00]}  d5 {[%clk 0:02:59]} 2. e4 {[%clk 0:02:59]}  dxe4 {[%clk 0:02:59]} 3. Nc3 {[%clk 0:02:59]}  Nf6 {[%clk 0:02:59]} 4. Qe2 {[%clk 0:02:58]}  Nc6 {[%clk 0:02:55]} 5. Nxe4 {[%clk 0:02:54]}  Nd4 {[%clk 0:02:46]} 6. Nxf6+ {[%clk 0:02:52]}  gxf6 {[%clk 0:02:47]} 7. Qd1 {[%clk 0:02:53]}  Bf5 {[%clk 0:02:47]} 8. d3 {[%clk 0:02:53]}  e5 {[%clk 0:02:47]} 9. Be3 {[%clk 0:02:53]}  Qd5 {[%clk 0:02:45]} 10. c3 {[%clk 0:02:47]}  Nc6 {[%clk 0:02:45]} 11. Qb3 {[%clk 0:02:46]}  O-O-O {[%clk 0:02:35]} 12. Qxd5 {[%clk 0:02:46]}  Rxd5 {[%clk 0:02:36]} 13. O-O-O {[%clk 0:02:46]}  Bg7 {[%clk 0:02:33]} 14. g4 {[%clk 0:02:43]}  Bg6 {[%clk 0:02:33]} 15. Nf3 {[%clk 0:02:34]}  Rhd8 {[%clk 0:02:33]} 16. d4 {[%clk 0:02:17]}  Be4 {[%clk 0:02:17]} 17. Bg2 {[%clk 0:02:08]}  exd4 {[%clk 0:02:15]} 18. cxd4 {[%clk 0:02:04]}  Nb4 {[%clk 0:02:06]} 19. a3 {[%clk 0:01:47]}  Nd3+ {[%clk 0:02:05]} 20. Rxd3 {[%clk 0:01:39]}  Bxd3 {[%clk 0:02:05]} 21. Ne1 {[%clk 0:01:37]}  Rxd4 {[%clk 0:02:05]} 22. Bxd4 {[%clk 0:01:36]}  Rxd4 {[%clk 0:02:06]} 23. Nxd3 {[%clk 0:01:34]}  Rxd3 {[%clk 0:02:06]} 24. Be4 {[%clk 0:01:27]}  Bh6+ {[%clk 0:01:45]} 25. Kb1 {[%clk 0:01:15]}  Rd2 {[%clk 0:01:46]} 26. Bxh7 {[%clk 0:01:15]}  Rxf2 {[%clk 0:01:45]} 27. Bf5+ {[%clk 0:01:15]}  Kd8 {[%clk 0:01:42]} 28. Rd1+ {[%clk 0:01:13]}  Rd2 {[%clk 0:01:42]} 29. Rxd2+ {[%clk 0:01:11]}  Bxd2 {[%clk 0:01:43]} 30. h4 {[%clk 0:01:11]}  Ke7 {[%clk 0:01:41]} 31. h5 {[%clk 0:01:11]}  Kd6 {[%clk 0:01:38]} 32. Kc2 {[%clk 0:01:11]}  Bh6 {[%clk 0:01:35]} 33. Kd3 {[%clk 0:01:10]}  c6 {[%clk 0:01:32]} 34. Bc8 {[%clk 0:01:06]}  b6 {[%clk 0:01:30]} 35. b3 {[%clk 0:01:03]}  Bc1 {[%clk 0:01:16]} 36. Bf5 {[%clk 0:00:53]}  Ke7 {[%clk 0:01:07]} 37. a4 {[%clk 0:00:51]}  Kd6 {[%clk 0:01:08]} 38. Kc4 {[%clk 0:00:47]}  a6 {[%clk 0:01:04]} 39. Bc8 {[%clk 0:00:44]}  b5+ {[%clk 0:01:03]} 40. Kd3 {[%clk 0:00:42]}  a5 {[%clk 0:01:01]} 41. Ba6 {[%clk 0:00:35]}  Kc5 {[%clk 0:01:00]} 42. Kc2 {[%clk 0:00:26]}  Bh6 {[%clk 0:00:57]} 43. Bb7 {[%clk 0:00:23]}  Kb6 {[%clk 0:00:54]} 44. Bc8 {[%clk 0:00:22]}  Kc5 {[%clk 0:00:54]} 45. Bd7 {[%clk 0:00:21]}  Bg5 {[%clk 0:00:47]} 46. Be8 {[%clk 0:00:19]}  Bh6 {[%clk 0:00:47]} 47. Bxf7 {[%clk 0:00:15]}  Kb4 {[%clk 0:00:46]} 48. Be8 {[%clk 0:00:13]}  bxa4 {[%clk 0:00:45]} 49. bxa4 {[%clk 0:00:13]}  Kxa4 {[%clk 0:00:45]} 50. Bxc6+ {[%clk 0:00:13]}  Kb4 {[%clk 0:00:45]} 51. Kd3 {[%clk 0:00:13]}  Kc5 {[%clk 0:00:40]} 52. Ba4 {[%clk 0:00:11]}  Kd6 {[%clk 0:00:40]} 53. Ke4 {[%clk 0:00:11]}  Ke7 {[%clk 0:00:40]} 54. Kf5 {[%clk 0:00:11]}  Kf7 {[%clk 0:00:40]} 55. Bb3+ {[%clk 0:00:11]}  Kg7 {[%clk 0:00:40]} 56. Ke6 {[%clk 0:00:11]}  Bd2 {[%clk 0:00:40]} 57. Kf5 {[%clk 0:00:08]}  Bc3 {[%clk 0:00:40]} 58. Ba4 {[%clk 0:00:08]}  Kh6 {[%clk 0:00:40]} 59. Bb3 {[%clk 0:00:07]}  Bb2 {[%clk 0:00:40]} 60. Ba4 {[%clk 0:00:08]}  Bc3 {[%clk 0:00:41]} 61. Bb3 {[%clk 0:00:08]}  Bb2 {[%clk 0:00:41]} 62. Ba4 {[%clk 0:00:09]}  Bc3 {[%clk 0:00:42]} 1/2-1/2


[Site "https://www.chess.com"]

[Event "Titled Tuesday Blitz July 26 Late 2022"]
[White "Weetik, Vjacheslav"]
[Black "Kopczynski, Michal"]
[WhiteFideId "4153472"]
[BlackFideId "1124200"]
[WhiteElo "2469"]
[BlackElo "2235"]
[Result "1/2-1/2"]
[Round "02"]
[TimeControl "180+1"]
[Date "2022.07.26"]
[WhiteClock "0:00:02"]
[BlackClock "0:00:03"]

1. d4 {[%clk 0:02:58]}  Nf6 {[%clk 0:02:59]} 2. c4 {[%clk 0:02:57]}  g6 {[%clk 0:03:00]} 3. Nc3 {[%clk 0:02:56]}  Bg7 {[%clk 0:03:00]} 4. e4 {[%clk 0:02:56]}  d6 {[%clk 0:03:01]} 5. Nf3 {[%clk 0:02:57]}  O-O {[%clk 0:03:02]} 6. Be2 {[%clk 0:02:57]}  e5 {[%clk 0:03:02]} 7. O-O {[%clk 0:02:57]}  Nc6 {[%clk 0:03:02]} 8. dxe5 {[%clk 0:02:57]}  dxe5 {[%clk 0:03:01]} 9. Bg5 {[%clk 0:02:57]}  Qe8 {[%clk 0:02:58]} 10. Nd5 {[%clk 0:02:54]}  Nxd5 {[%clk 0:02:57]} 11. cxd5 {[%clk 0:02:54]}  Nd8 {[%clk 0:02:55]} 12. Rc1 {[%clk 0:02:49]}  c6 {[%clk 0:02:53]} 13. Bxd8 {[%clk 0:02:21]}  Qxd8 {[%clk 0:02:53]} 14. dxc6 {[%clk 0:02:20]}  bxc6 {[%clk 0:02:53]} 15. Rxc6 {[%clk 0:02:16]}  Bb7 {[%clk 0:02:52]} 16. Rd6 {[%clk 0:02:10]}  Qa5 {[%clk 0:02:51]} 17. Bc4 {[%clk 0:02:02]}  Bxe4 {[%clk 0:02:45]} 18. Ng5 {[%clk 0:02:00]}  Bf5 {[%clk 0:02:33]} 19. g4 {[%clk 0:01:20]}  Qb4 {[%clk 0:01:01]} 20. Bxf7+ {[%clk 0:01:07]}  Rxf7 {[%clk 0:01:00]} 21. Nxf7 {[%clk 0:01:02]}  Qxg4+ {[%clk 0:00:37]} 22. Qxg4 {[%clk 0:01:01]}  Bxg4 {[%clk 0:00:38]} 23. Rd8+ {[%clk 0:00:43]}  Rxd8 {[%clk 0:00:37]} 24. Nxd8 {[%clk 0:00:44]}  e4 {[%clk 0:00:36]} 25. b4 {[%clk 0:00:39]}  Bc3 {[%clk 0:00:32]} 26. Nc6 {[%clk 0:00:37]}  a6 {[%clk 0:00:31]} 27. Rc1 {[%clk 0:00:32]}  Bf6 {[%clk 0:00:31]} 28. a4 {[%clk 0:00:25]}  Be2 {[%clk 0:00:27]} 29. b5 {[%clk 0:00:20]}  axb5 {[%clk 0:00:26]} 30. a5 {[%clk 0:00:21]}  b4 {[%clk 0:00:15]} 31. Nxb4 {[%clk 0:00:20]}  Be7 {[%clk 0:00:16]} 32. a6 {[%clk 0:00:18]}  e3 {[%clk 0:00:06]} 33. a7 {[%clk 0:00:13]}  Bf3 {[%clk 0:00:06]} 34. Rc8+ {[%clk 0:00:12]}  Kf7 {[%clk 0:00:06]} 35. a8=Q {[%clk 0:00:12]}  Bxa8 {[%clk 0:00:06]} 36. Rxa8 {[%clk 0:00:13]}  exf2+ {[%clk 0:00:06]} 37. Kxf2 {[%clk 0:00:07]}  Bxb4 {[%clk 0:00:07]} 38. Ra7+ {[%clk 0:00:07]}  Be7 {[%clk 0:00:07]} 39. Kf3 {[%clk 0:00:07]}  Ke6 {[%clk 0:00:06]} 40. Ke4 {[%clk 0:00:07]}  h6 {[%clk 0:00:06]} 41. h3 {[%clk 0:00:08]}  Bf6 {[%clk 0:00:04]} 42. Ra6+ {[%clk 0:00:08]}  Kf7 {[%clk 0:00:05]} 43. Kd5 {[%clk 0:00:09]}  g5 {[%clk 0:00:04]} 44. Ra7+ {[%clk 0:00:06]}  Kg6 {[%clk 0:00:04]} 45. Ke6 {[%clk 0:00:06]}  h5 {[%clk 0:00:03]} 46. Ra8 {[%clk 0:00:07]}  g4 {[%clk 0:00:02]} 47. hxg4 {[%clk 0:00:07]}  hxg4 {[%clk 0:00:03]} 48. Ra5 {[%clk 0:00:02]}  g3 {[%clk 0:00:03]} 49. Ra3 {[%clk 0:00:02]}  Bh4 {[%clk 0:00:02]} 50. Rf3 {[%clk 0:00:02]}  Kg5 {[%clk 0:00:03]} 51. Rf8 {[%clk 0:00:02]}  Kg4 {[%clk 0:00:03]} 52. Ke5 {[%clk 0:00:03]}  Kh3 {[%clk 0:00:03]} 53. Ke4 {[%clk 0:00:03]}  g2 {[%clk 0:00:03]} 54. Rg8 {[%clk 0:00:02]}  Bg3 {[%clk 0:00:03]} 55. Rh8+ {[%clk 0:00:03]}  Kg4 {[%clk 0:00:02]} 56. Rg8+ {[%clk 0:00:04]}  Kh4 {[%clk 0:00:02]} 57. Rh8+ {[%clk 0:00:03]}  Kg4 {[%clk 0:00:02]} 58. Rg8+ {[%clk 0:00:03]}  Kh4 {[%clk 0:00:03]} 59. Rh8+ {[%clk 0:00:02]}  Kg4 {[%clk 0:00:03]} 1/2-1/2


[Site "https://www.chess.com"]

[Event "Titled Tuesday Blitz July 26 Late 2022"]
[White "Wieczorek, Oskar"]
[Black "Melaugh, Shane"]
[WhiteFideId "1133950"]
[BlackFideId "2509580"]
[WhiteElo "2330"]
[BlackElo "1938"]
[Result "1-0"]
[Round "02"]
[TimeControl "180+1"]
[Date "2022.07.27"]
[WhiteClock "0:00:16"]
[BlackClock "0:00:06"]

1. e4 {[%clk 0:03:00]}  e6 {[%clk 0:02:59]} 2. d4 {[%clk 0:03:00]}  d5 {[%clk 0:03:00]} 3. Nd2 {[%clk 0:03:01]}  dxe4 {[%clk 0:02:59]} 4. Nxe4 {[%clk 0:03:02]}  Nf6 {[%clk 0:03:00]} 5. Nxf6+ {[%clk 0:03:02]}  gxf6 {[%clk 0:03:01]} 6. Nf3 {[%clk 0:03:01]}  Nc6 {[%clk 0:03:01]} 7. g3 {[%clk 0:03:01]}  b6 {[%clk 0:03:01]} 8. Bg2 {[%clk 0:03:01]}  Bb7 {[%clk 0:03:01]} 9. O-O {[%clk 0:03:02]}  Qd7 {[%clk 0:03:02]} 10. c3 {[%clk 0:02:53]}  O-O-O {[%clk 0:03:02]} 11. a4 {[%clk 0:02:54]}  a5 {[%clk 0:03:02]} 12. Nh4 {[%clk 0:02:53]}  Kb8 {[%clk 0:02:48]} 13. Qe2 {[%clk 0:02:46]}  Ka7 {[%clk 0:02:46]} 14. Rd1 {[%clk 0:02:32]}  f5 {[%clk 0:02:19]} 15. Bf4 {[%clk 0:01:46]}  Ne7 {[%clk 0:02:17]} 16. Bxb7 {[%clk 0:01:38]}  Kxb7 {[%clk 0:02:18]} 17. b4 {[%clk 0:01:39]}  axb4 {[%clk 0:02:18]} 18. a5 {[%clk 0:01:39]}  Nd5 {[%clk 0:02:19]} 19. axb6 {[%clk 0:01:35]}  cxb6 {[%clk 0:01:32]} 20. Qa6+ {[%clk 0:01:25]}  Kc6 {[%clk 0:01:32]} 21. cxb4 {[%clk 0:01:11]}  Nxf4 {[%clk 0:01:32]} 22. b5+ {[%clk 0:00:55]}  Kd6 {[%clk 0:01:29]} 23. Qxb6+ {[%clk 0:00:55]}  Ke7 {[%clk 0:01:27]} 24. Ra7 {[%clk 0:00:55]}  Nd5 {[%clk 0:01:21]} 25. Rxd7+ {[%clk 0:00:51]}  Rxd7 {[%clk 0:01:22]} 26. Nxf5+ {[%clk 0:00:36]}  Kf6 {[%clk 0:01:10]} 27. Qb8 {[%clk 0:00:34]}  Rg8 {[%clk 0:00:20]} 28. Qe5+ {[%clk 0:00:32]}  Kg6 {[%clk 0:00:21]} 29. Nh4+ {[%clk 0:00:31]}  Kh6 {[%clk 0:00:20]} 30. b6 {[%clk 0:00:31]}  Bd6 {[%clk 0:00:20]} 31. Qe4 {[%clk 0:00:24]}  Rb8 {[%clk 0:00:16]} 32. Rb1 {[%clk 0:00:19]}  Rxb6 {[%clk 0:00:14]} 33. Rxb6 {[%clk 0:00:19]}  Nxb6 {[%clk 0:00:15]} 34. f4 {[%clk 0:00:17]}  Nd5 {[%clk 0:00:07]} 35. Nf3 {[%clk 0:00:17]}  Nf6 {[%clk 0:00:06]} 36. Qd3 {[%clk 0:00:16]}  Bc5 {[%clk 0:00:05]} 37. Qb5 {[%clk 0:00:15]}  Bxd4+ {[%clk 0:00:05]} 38. Nxd4 {[%clk 0:00:16]}  Rxd4 {[%clk 0:00:06]} 39. Qg5# {[%clk 0:00:16]} 1-0


[Site "https://www.chess.com"]

[Event "Titled Tuesday Blitz July 26 Late 2022"]
[White "Yoo, Christopher Woojin"]
[Black "Katz, Alexander"]
[WhiteFideId "30909694"]
[BlackFideId "2039796"]
[WhiteElo "2105"]
[BlackElo "2386"]
[Result "1-0"]
[Round "02"]
[TimeControl "180+1"]
[Date "2022.07.26"]
[WhiteClock "0:00:05"]
[BlackClock "0:00:03"]

1. e4 {[%clk 0:03:00]}  c6 {[%clk 0:03:00]} 2. d4 {[%clk 0:03:00]}  d5 {[%clk 0:03:00]} 3. Nc3 {[%clk 0:03:01]}  dxe4 {[%clk 0:03:00]} 4. Nxe4 {[%clk 0:03:02]}  Bf5 {[%clk 0:03:00]} 5. Ng3 {[%clk 0:03:02]}  Bg6 {[%clk 0:03:01]} 6. Nf3 {[%clk 0:03:03]}  Nd7 {[%clk 0:03:00]} 7. h4 {[%clk 0:03:03]}  h6 {[%clk 0:03:00]} 8. h5 {[%clk 0:03:04]}  Bh7 {[%clk 0:03:01]} 9. Bd3 {[%clk 0:03:03]}  Bxd3 {[%clk 0:03:00]} 10. Qxd3 {[%clk 0:03:04]}  Ngf6 {[%clk 0:02:57]} 11. Bf4 {[%clk 0:02:59]}  e6 {[%clk 0:02:47]} 12. O-O-O {[%clk 0:02:59]}  Qa5 {[%clk 0:02:35]} 13. Kb1 {[%clk 0:02:59]}  Be7 {[%clk 0:02:28]} 14. Ne5 {[%clk 0:02:11]}  Nxe5 {[%clk 0:01:50]} 15. dxe5 {[%clk 0:01:59]}  Nd5 {[%clk 0:01:50]} 16. Bd2 {[%clk 0:01:58]}  Qc7 {[%clk 0:01:49]} 17. c4 {[%clk 0:01:53]}  Nb6 {[%clk 0:01:47]} 18. Ne4 {[%clk 0:01:20]}  Rd8 {[%clk 0:01:41]} 19. Qg3 {[%clk 0:01:05]}  Nxc4 {[%clk 0:01:28]} 20. Bc3 {[%clk 0:00:59]}  O-O {[%clk 0:01:17]} 21. Nd6 {[%clk 0:00:53]}  Nb6 {[%clk 0:00:55]} 22. Ba5 {[%clk 0:00:31]}  Bxd6 {[%clk 0:00:44]} 23. exd6 {[%clk 0:00:30]}  Qd7 {[%clk 0:00:45]} 24. Rh4 {[%clk 0:00:26]}  f6 {[%clk 0:00:42]} 25. Rg4 {[%clk 0:00:26]}  Rde8 {[%clk 0:00:40]} 26. Rg6 {[%clk 0:00:26]}  Kh7 {[%clk 0:00:33]} 27. Bd2 {[%clk 0:00:25]}  Nd5 {[%clk 0:00:26]} 28. Bxh6 {[%clk 0:00:23]}  Rg8 {[%clk 0:00:18]} 29. Bc1 {[%clk 0:00:22]}  e5 {[%clk 0:00:16]} 30. Qf3 {[%clk 0:00:04]}  e4 {[%clk 0:00:13]} 31. Qg4 {[%clk 0:00:04]}  Qxg4 {[%clk 0:00:06]} 32. Rxg4 {[%clk 0:00:05]}  f5 {[%clk 0:00:05]} 33. Rg5 {[%clk 0:00:05]}  Rgf8 {[%clk 0:00:05]} 34. Re1 {[%clk 0:00:03]}  Rd8 {[%clk 0:00:05]} 35. g4 {[%clk 0:00:03]}  fxg4 {[%clk 0:00:05]} 36. Rxe4 {[%clk 0:00:03]}  Rxf2 {[%clk 0:00:04]} 37. Rexg4 {[%clk 0:00:03]}  Rf7 {[%clk 0:00:04]} 38. Rg6 {[%clk 0:00:03]}  Nf6 {[%clk 0:00:04]} 39. Rf4 {[%clk 0:00:03]}  Nxh5 {[%clk 0:00:03]} 40. Rxf7 {[%clk 0:00:03]}  Kxg6 {[%clk 0:00:04]} 41. Rxb7 {[%clk 0:00:04]}  Rxd6 {[%clk 0:00:05]} 42. Rxa7 {[%clk 0:00:05]}  Nf6 {[%clk 0:00:04]} 43. Kc2 {[%clk 0:00:05]}  Nd5 {[%clk 0:00:04]} 44. Bd2 {[%clk 0:00:05]}  Kf6 {[%clk 0:00:04]} 45. a4 {[%clk 0:00:05]}  g5 {[%clk 0:00:05]} 46. a5 {[%clk 0:00:05]}  g4 {[%clk 0:00:05]} 47. Ra8 {[%clk 0:00:05]}  Nc7 {[%clk 0:00:05]} 48. Rg8 {[%clk 0:00:05]}  Kf5 {[%clk 0:00:04]} 49. Rg5+ {[%clk 0:00:06]}  Ke6 {[%clk 0:00:03]} 50. Rxg4 {[%clk 0:00:05]}  Kd7 {[%clk 0:00:03]} 51. Rg7+ {[%clk 0:00:05]}  Kc8 {[%clk 0:00:03]} 52. Rxc7+ {[%clk 0:00:06]}  Kxc7 {[%clk 0:00:02]} 53. Bf4 {[%clk 0:00:06]}  Kd7 {[%clk 0:00:03]} 54. Bxd6 {[%clk 0:00:05]}  Kxd6 {[%clk 0:00:04]} 55. Kb3 {[%clk 0:00:04]}  Kc7 {[%clk 0:00:03]} 56. Kb4 {[%clk 0:00:03]}  Kb7 {[%clk 0:00:02]} 57. Kc5 {[%clk 0:00:04]}  Ka6 {[%clk 0:00:03]} 58. b4 {[%clk 0:00:05]} 1-0


[Site "https://www.chess.com"]